[Event "*** Titled Tuesday Blitz"]
[Site "Chess.com"]
[Date "2019.04.02"]
[Round "4"]
[White "ilm2034"]
[Black "ElGasanov"]
[Result "0-1"]
[WhiteElo "2424"]
[BlackElo "2673"]
[TimeControl "180+2"]
[EndTime "14:48:36 PDT"]
[Termination "ElGasanov won by resignation"]

1. d4 {[%clk 0:02:45.1]} 1... d6 {[%clk 0:03:00.2]} 2. c4 {[%clk 0:02:46.3]}
2... e5 {[%clk 0:03:00.7]} 3. d5 {[%clk 0:02:47]} 3... f5 {[%clk 0:03:00]} 4. e4
{[%clk 0:02:48.2]} 4... Nf6 {[%clk 0:03:00.4]} 5. Nc3 {[%clk 0:02:49]} 5... Be7
{[%clk 0:03:01]} 6. exf5 {[%clk 0:02:45.1]} 6... Bxf5 {[%clk 0:02:59.5]} 7. Nge2
{[%clk 0:02:44.8]} 7... Nbd7 {[%clk 0:02:55.1]} 8. Ng3 {[%clk 0:02:45.8]} 8...
Bg6 {[%clk 0:02:56.7]} 9. Bd3 {[%clk 0:02:47.4]} 9... Bxd3 {[%clk 0:02:55.9]}
10. Qxd3 {[%clk 0:02:47.3]} 10... Nc5 {[%clk 0:02:56.5]} 11. Qe2 {[%clk
0:02:45.1]} 11... O-O {[%clk 0:02:56.3]} 12. Be3 {[%clk 0:02:44]} 12... Nfd7
{[%clk 0:02:54.4]} 13. O-O-O {[%clk 0:02:41]} 13... Bg5 {[%clk 0:02:53.9]} 14.
h4 {[%clk 0:02:40.1]} 14... Bxe3+ {[%clk 0:02:52.2]} 15. fxe3 {[%clk 0:02:41.2]}
15... Qf6 {[%clk 0:02:46.2]} 16. Nce4 {[%clk 0:02:31.2]} 16... Qg6 {[%clk
0:02:46.4]} 17. h5 {[%clk 0:02:26.2]} 17... Qh6 {[%clk 0:02:47.6]} 18. Rdf1
{[%clk 0:02:24.2]} 18... a5 {[%clk 0:02:37.2]} 19. Nxc5 {[%clk 0:02:09.1]} 19...
Nxc5 {[%clk 0:02:37.4]} 20. Nf5 {[%clk 0:02:10.5]} 20... Qg5 {[%clk 0:02:36.2]}
21. g4 {[%clk 0:02:10]} 21... e4 {[%clk 0:02:27.2]} 22. Kb1 {[%clk 0:02:07]}
22... a4 {[%clk 0:02:26.9]} 23. a3 {[%clk 0:02:06.9]} 23... Rf7 {[%clk
0:02:21.9]} 24. Rf4 {[%clk 0:01:58.9]} 24... Raf8 {[%clk 0:02:13.2]} 25. Rhf1
{[%clk 0:01:58.5]} 25... g6 {[%clk 0:02:14.5]} 26. Nd4 {[%clk 0:01:32.3]} 26...
Rxf4 {[%clk 0:02:13.3]} 27. exf4 {[%clk 0:01:30.4]} 27... Rxf4 {[%clk
0:02:14.7]} 28. hxg6 {[%clk 0:01:31.1]} 28... hxg6 {[%clk 0:02:04.7]} 29. Rh1
{[%clk 0:01:31.6]} 29... Qf6 {[%clk 0:01:57.5]} 30. Qe3 {[%clk 0:01:25.7]} 30...
Rf1+ {[%clk 0:01:57.2]} 31. Rxf1 {[%clk 0:01:26.3]} 31... Qxf1+ {[%clk 0:01:59]}
32. Ka2 {[%clk 0:01:26.8]} 32... Qxc4+ {[%clk 0:01:58]} 33. Kb1 {[%clk
0:01:28.2]} 33... Nb3 {[%clk 0:01:47]} 34. Nc2 {[%clk 0:01:06.6]} 34... Qxd5
{[%clk 0:01:22]} 35. Qh6 {[%clk 0:01:07.1]} 35... Qd1+ {[%clk 0:01:12.6]} 36.
Ka2 {[%clk 0:01:07.8]} 36... Nc1+ {[%clk 0:01:11.5]} 37. Kb1 {[%clk 0:01:08.2]}
37... Ne2+ {[%clk 0:01:09.6]} 38. Ka2 {[%clk 0:01:08.9]} 38... Nc3+ {[%clk
0:01:10.6]} 39. bxc3 {[%clk 0:01:09.4]} 39... Qxc2+ {[%clk 0:01:12.1]} 40. Ka1
{[%clk 0:01:11.1]} 40... Qxc3+ {[%clk 0:01:13]} 41. Ka2 {[%clk 0:01:12.6]} 41...
Qb3+ {[%clk 0:01:13.6]} 42. Ka1 {[%clk 0:01:14]} 42... Qxa3+ {[%clk 0:01:14.7]}
43. Kb1 {[%clk 0:01:15.9]} 43... Qb3+ {[%clk 0:01:15]} 44. Ka1 {[%clk
0:01:16.1]} 44... Qc3+ {[%clk 0:01:11.5]} 45. Kb1 {[%clk 0:01:16.8]} 45... Qf6
{[%clk 0:01:10.7]} 46. g5 {[%clk 0:01:17.1]} 46... Qf5 {[%clk 0:01:09.7]} 47.
Ka1 {[%clk 0:01:13.5]} 47... e3 {[%clk 0:01:08.3]} 48. Qh2 {[%clk 0:01:14.3]}
48... Qe5+ {[%clk 0:01:08.7]} 0-1

[Event "*** Titled Tuesday Blitz"]
[Site "Chess.com"]
[Date "2019.04.02"]
[Round "4"]
[White "nubair1198"]
[Black "Blitzstream"]
[Result "1-0"]
[WhiteElo "2666"]
[BlackElo "2670"]
[TimeControl "180+2"]
[EndTime "14:48:40 PDT"]
[Termination "nubair1198 won by resignation"]

1. d4 {[%clk 0:03:01.9]} 1... Nf6 {[%clk 0:03:00.8]} 2. c4 {[%clk 0:03:02.5]}
2... c6 {[%clk 0:03:01.5]} 3. Nf3 {[%clk 0:03:02.6]} 3... d5 {[%clk 0:03:02.8]}
4. Nc3 {[%clk 0:03:04.2]} 4... e6 {[%clk 0:03:04]} 5. Bg5 {[%clk 0:03:04.8]}
5... h6 {[%clk 0:03:05.2]} 6. Bh4 {[%clk 0:03:05.8]} 6... dxc4 {[%clk 0:03:05]}
7. e4 {[%clk 0:03:07.4]} 7... g5 {[%clk 0:03:06.5]} 8. Bg3 {[%clk 0:03:08.9]}
8... b5 {[%clk 0:03:08.3]} 9. Be2 {[%clk 0:03:10.5]} 9... Nbd7 {[%clk
0:03:06.2]} 10. O-O {[%clk 0:03:12]} 10... Bb7 {[%clk 0:03:07.6]} 11. Ne5 {[%clk
0:03:13.6]} 11... Qb6 {[%clk 0:03:06.5]} 12. a4 {[%clk 0:03:10]} 12... a6 {[%clk
0:02:54.5]} 13. d5 {[%clk 0:02:29.2]} 13... cxd5 {[%clk 0:02:38.9]} 14. exd5
{[%clk 0:02:23]} 14... Nxd5 {[%clk 0:02:33.6]} 15. Nxd5 {[%clk 0:02:19.6]} 15...
Bxd5 {[%clk 0:02:30.4]} 16. axb5 {[%clk 0:02:20.9]} 16... Bg7 {[%clk 0:01:05.7]}
17. Nxd7 {[%clk 0:01:55.6]} 17... Kxd7 {[%clk 0:01:07.6]} 18. Bxc4 {[%clk
0:01:56.9]} 18... Qd4 {[%clk 0:01:05.7]} 19. Bxd5 {[%clk 0:01:52.4]} 19... exd5
{[%clk 0:00:57.8]} 20. Qf3 {[%clk 0:01:37.3]} 20... Ke7 {[%clk 0:00:46.8]} 21.
Rfe1+ {[%clk 0:01:29.1]} 21... Kf8 {[%clk 0:00:47.6]} 22. bxa6 {[%clk
0:01:21.7]} 22... Bf6 {[%clk 0:00:37.3]} 23. Rad1 {[%clk 0:01:02.2]} 23... Qxb2
{[%clk 0:00:37.7]} 24. Re2 {[%clk 0:01:01.2]} 24... Qc3 {[%clk 0:00:35.4]} 25.
Re3 {[%clk 0:01:02.2]} 25... Qb2 {[%clk 0:00:34.9]} 26. Rb3 {[%clk 0:01:02.7]}
26... Qc2 {[%clk 0:00:30.7]} 27. Rb6 {[%clk 0:00:59.5]} 27... Bg7 {[%clk
0:00:16.5]} 28. Qxd5 {[%clk 0:00:58.5]} 28... Re8 {[%clk 0:00:10.6]} 29. a7
{[%clk 0:00:58.1]} 29... Qa4 {[%clk 0:00:11.2]} 30. Rb8 {[%clk 0:00:54.5]} 30...
Qxa7 {[%clk 0:00:10]} 31. Bd6+ {[%clk 0:00:55.7]} 31... Kg8 {[%clk 0:00:10.9]}
32. Rxe8+ {[%clk 0:00:57.1]} 32... Kh7 {[%clk 0:00:12.5]} 33. Qe4+ {[%clk
0:00:58.6]} 1-0

[Event "*** Titled Tuesday Blitz"]
[Site "Chess.com"]
[Date "2019.04.02"]
[Round "4"]
[White "GelmanAlexander"]
[Black "scaryninja"]
[Result "0-1"]
[WhiteElo "2551"]
[BlackElo "2459"]
[TimeControl "180+2"]
[EndTime "14:48:40 PDT"]
[Termination "scaryninja won by resignation"]

1. d4 {[%clk 0:03:01.9]} 1... d5 {[%clk 0:02:59.3]} 2. Nc3 {[%clk 0:03:02.5]}
2... Bf5 {[%clk 0:02:48.8]} 3. Bf4 {[%clk 0:03:00.1]} 3... e6 {[%clk 0:02:48.8]}
4. f3 {[%clk 0:02:58.9]} 4... Nf6 {[%clk 0:02:49.7]} 5. g4 {[%clk 0:02:55.6]}
5... Bg6 {[%clk 0:02:48.3]} 6. h4 {[%clk 0:02:56.7]} 6... h6 {[%clk 0:02:48.9]}
7. e3 {[%clk 0:02:54.5]} 7... Bd6 {[%clk 0:02:45.5]} 8. Nh3 {[%clk 0:02:43.8]}
8... a6 {[%clk 0:02:33.3]} 9. Bd3 {[%clk 0:02:43.6]} 9... Bxd3 {[%clk
0:02:32.7]} 10. Qxd3 {[%clk 0:02:44.4]} 10... c5 {[%clk 0:02:28.8]} 11. dxc5
{[%clk 0:02:31.5]} 11... Bxc5 {[%clk 0:02:27.9]} 12. O-O-O {[%clk 0:02:32.7]}
12... Nc6 {[%clk 0:02:27.4]} 13. g5 {[%clk 0:02:24]} 13... hxg5 {[%clk
0:02:19.4]} 14. hxg5 {[%clk 0:02:24]} 14... Nd7 {[%clk 0:02:14]} 15. g6 {[%clk
0:02:08.7]} 15... f6 {[%clk 0:02:04.3]} 16. Nxd5 {[%clk 0:00:36.9]} 16... exd5
{[%clk 0:02:01.4]} 17. Qxd5 {[%clk 0:00:38]} 17... Qe7 {[%clk 0:01:50.9]} 18.
Bc7 {[%clk 0:00:27.9]} 18... Nf8 {[%clk 0:01:08.9]} 19. Nf4 {[%clk 0:00:18.9]}
19... Rxh1 {[%clk 0:01:03.8]} 20. Rxh1 {[%clk 0:00:20.8]} 20... Bxe3+ {[%clk
0:01:02.6]} 21. Kb1 {[%clk 0:00:21.6]} 21... Bxf4 {[%clk 0:00:34.1]} 22. Bxf4
{[%clk 0:00:21.3]} 22... Rd8 {[%clk 0:00:30]} 23. Qg8 {[%clk 0:00:22.1]} 23...
Kd7 {[%clk 0:00:27.9]} 24. Qb3 {[%clk 0:00:14.7]} 24... Kc8 {[%clk 0:00:28]} 25.
Qb6 {[%clk 0:00:15.4]} 25... Nxg6 {[%clk 0:00:24.3]} 26. Bg3 {[%clk 0:00:16.6]}
26... Nge5 {[%clk 0:00:24.7]} 27. a3 {[%clk 0:00:17.6]} 27... Nc4 {[%clk
0:00:23.4]} 28. Qb3 {[%clk 0:00:16.5]} 28... Nd2+ {[%clk 0:00:24.7]} 0-1

[Event "*** Titled Tuesday Blitz"]
[Site "Chess.com"]
[Date "2019.04.02"]
[Round "4"]
[White "IIIlllII1llIl"]
[Black "Korchmar_Vasiliy"]
[Result "0-1"]
[WhiteElo "2793"]
[BlackElo "2773"]
[TimeControl "180+2"]
[EndTime "14:48:46 PDT"]
[Termination "Korchmar_Vasiliy won on time"]

1. e4 {[%clk 0:03:01.9]} 1... c5 {[%clk 0:03:00.7]} 2. c3 {[%clk 0:03:02.9]}
2... Nf6 {[%clk 0:03:00]} 3. e5 {[%clk 0:03:04.1]} 3... Nd5 {[%clk 0:03:00.8]}
4. Nf3 {[%clk 0:03:05.6]} 4... e6 {[%clk 0:03:01.8]} 5. d4 {[%clk 0:03:06.6]}
5... cxd4 {[%clk 0:03:03.7]} 6. cxd4 {[%clk 0:03:08.5]} 6... d6 {[%clk
0:03:04.5]} 7. Bc4 {[%clk 0:03:09.1]} 7... Be7 {[%clk 0:03:04.1]} 8. Qe2 {[%clk
0:03:09.8]} 8... O-O {[%clk 0:03:03.8]} 9. O-O {[%clk 0:03:11]} 9... b6 {[%clk
0:02:46.8]} 10. Bd2 {[%clk 0:03:11.6]} 10... Bb7 {[%clk 0:02:42.5]} 11. Nc3
{[%clk 0:03:12.4]} 11... Nxc3 {[%clk 0:02:42.7]} 12. Bxc3 {[%clk 0:03:14.3]}
12... dxe5 {[%clk 0:02:38.5]} 13. Nxe5 {[%clk 0:03:10]} 13... Nd7 {[%clk
0:02:32.7]} 14. Nxf7 {[%clk 0:03:07.3]} 14... Rxf7 {[%clk 0:02:26.6]} 15. Qxe6
{[%clk 0:03:06.8]} 15... Qe8 {[%clk 0:02:24.3]} 16. Rae1 {[%clk 0:02:08.4]}
16... Rc8 {[%clk 0:01:49.5]} 17. Bb3 {[%clk 0:00:54.4]} 17... Kf8 {[%clk
0:01:50.6]} 18. d5 {[%clk 0:00:27]} 18... Rxc3 {[%clk 0:00:56.6]} 19. bxc3
{[%clk 0:00:27.3]} 19... Nc5 {[%clk 0:00:58.3]} 20. Qh3 {[%clk 0:00:21.5]} 20...
Rf6 {[%clk 0:00:52.2]} 21. Qxh7 {[%clk 0:00:11.3]} 21... Rh6 {[%clk 0:00:53.3]}
22. Qf5+ {[%clk 0:00:09.1]} 22... Rf6 {[%clk 0:00:54.6]} 23. Qh3 {[%clk
0:00:09.3]} 23... Nxb3 {[%clk 0:00:50.7]} 24. d6 {[%clk 0:00:08.7]} 24... Rxd6
{[%clk 0:00:49.1]} 25. axb3 {[%clk 0:00:07.5]} 25... Rg6 {[%clk 0:00:44.6]} 26.
f3 {[%clk 0:00:07.7]} 26... Qd8 {[%clk 0:00:36.5]} 27. Qh7 {[%clk 0:00:03.3]}
27... Kf7 {[%clk 0:00:32.8]} 0-1

[Event "*** Titled Tuesday Blitz"]
[Site "Chess.com"]
[Date "2019.04.02"]
[Round "4"]
[White "sere99"]
[Black "Alex_Terzi"]
[Result "1-0"]
[WhiteElo "2290"]
[BlackElo "2416"]
[TimeControl "180+2"]
[EndTime "14:48:50 PDT"]
[Termination "sere99 won by checkmate"]

1. d4 {[%clk 0:03:01.9]} 1... Nf6 {[%clk 0:03:00.5]} 2. c4 {[%clk 0:03:02.4]}
2... g6 {[%clk 0:03:01.3]} 3. Nf3 {[%clk 0:03:02.6]} 3... Bg7 {[%clk 0:03:02.6]}
4. g3 {[%clk 0:02:41.6]} 4... O-O {[%clk 0:03:03.1]} 5. Bg2 {[%clk 0:02:43.5]}
5... d6 {[%clk 0:03:04.3]} 6. O-O {[%clk 0:02:45.4]} 6... Nc6 {[%clk 0:03:05.5]}
7. Nc3 {[%clk 0:02:46.3]} 7... Bf5 {[%clk 0:03:06.3]} 8. Ne1 {[%clk 0:02:46.4]}
8... Na5 {[%clk 0:02:51.2]} 9. e4 {[%clk 0:02:21.6]} 9... Bg4 {[%clk 0:02:46.4]}
10. f3 {[%clk 0:02:21.5]} 10... Be6 {[%clk 0:02:36.1]} 11. b3 {[%clk 0:02:10.4]}
11... c5 {[%clk 0:02:32.6]} 12. Nc2 {[%clk 0:02:10.8]} 12... a6 {[%clk
0:02:26.6]} 13. Be3 {[%clk 0:02:02.8]} 13... Qc7 {[%clk 0:02:02.7]} 14. Qd2
{[%clk 0:01:57]} 14... Rfd8 {[%clk 0:02:01.1]} 15. Nd5 {[%clk 0:01:48.3]} 15...
Nxd5 {[%clk 0:01:48.5]} 16. cxd5 {[%clk 0:01:50.2]} 16... Bd7 {[%clk 0:01:48.9]}
17. dxc5 {[%clk 0:01:44.6]} 17... dxc5 {[%clk 0:01:39.3]} 18. Rac1 {[%clk
0:01:39.1]} 18... b5 {[%clk 0:01:33.9]} 19. Qf2 {[%clk 0:01:30.5]} 19... Rdc8
{[%clk 0:01:24.9]} 20. b4 {[%clk 0:01:23.6]} 20... Bb2 {[%clk 0:00:36.6]} 21.
bxa5 {[%clk 0:01:15.2]} 21... Bxc1 {[%clk 0:00:37]} 22. Bxc1 {[%clk 0:01:09.5]}
22... Qxa5 {[%clk 0:00:36.7]} 23. Ne3 {[%clk 0:01:04.1]} 23... c4 {[%clk
0:00:34.5]} 24. d6 {[%clk 0:00:58.1]} 24... exd6 {[%clk 0:00:27.4]} 25. Nd5
{[%clk 0:00:52.3]} 25... Be6 {[%clk 0:00:21.2]} 26. Qd4 {[%clk 0:00:47.4]} 26...
Bxd5 {[%clk 0:00:20.9]} 27. Bh6 {[%clk 0:00:42.9]} 27... f6 {[%clk 0:00:15.3]}
28. Qxd5+ {[%clk 0:00:35.1]} 28... Kh8 {[%clk 0:00:16.4]} 29. Qf7 {[%clk
0:00:30.4]} 29... Qc7 {[%clk 0:00:17.4]} 30. Bg7# {[%clk 0:00:28.7]} 1-0

[Event "*** Titled Tuesday Blitz"]
[Site "Chess.com"]
[Date "2019.04.02"]
[Round "4"]
[White "swisspower96"]
[Black "m3alam"]
[Result "0-1"]
[WhiteElo "2588"]
[BlackElo "2420"]
[TimeControl "180+2"]
[EndTime "14:48:50 PDT"]
[Termination "m3alam won by resignation"]

1. e4 {[%clk 0:03:01.9]} 1... c6 {[%clk 0:03:01.3]} 2. d4 {[%clk 0:03:02]} 2...
d5 {[%clk 0:03:01.5]} 3. exd5 {[%clk 0:02:59.9]} 3... cxd5 {[%clk 0:03:02.5]} 4.
Bd3 {[%clk 0:03:01.5]} 4... Nc6 {[%clk 0:02:58.6]} 5. c3 {[%clk 0:03:02.8]} 5...
Nf6 {[%clk 0:02:52.9]} 6. Bf4 {[%clk 0:02:54.6]} 6... g6 {[%clk 0:02:49.1]} 7.
Nf3 {[%clk 0:02:53.5]} 7... Bg7 {[%clk 0:02:48.9]} 8. O-O {[%clk 0:02:51.5]}
8... Nh5 {[%clk 0:02:34.5]} 9. Be3 {[%clk 0:02:44.8]} 9... O-O {[%clk
0:02:30.9]} 10. h3 {[%clk 0:02:42.4]} 10... Qd6 {[%clk 0:02:23.4]} 11. Qd2
{[%clk 0:02:28.9]} 11... Bf5 {[%clk 0:02:20.1]} 12. Bxf5 {[%clk 0:02:23.6]}
12... gxf5 {[%clk 0:02:17.4]} 13. Qd3 {[%clk 0:02:22.6]} 13... e6 {[%clk
0:02:08.5]} 14. Na3 {[%clk 0:02:23.5]} 14... a6 {[%clk 0:02:05.5]} 15. c4 {[%clk
0:02:15.5]} 15... Qc7 {[%clk 0:01:54.3]} 16. cxd5 {[%clk 0:02:13.3]} 16... Nb4
{[%clk 0:01:51]} 17. d6 {[%clk 0:02:01.9]} 17... Qxd6 {[%clk 0:01:47.2]} 18. Qb3
{[%clk 0:02:00.8]} 18... b5 {[%clk 0:01:47.6]} 19. Rac1 {[%clk 0:01:38]} 19...
Nd5 {[%clk 0:01:44.2]} 20. Rc5 {[%clk 0:01:35.4]} 20... Nhf6 {[%clk 0:01:40.3]}
21. Rfc1 {[%clk 0:01:34.9]} 21... Ne4 {[%clk 0:01:36.9]} 22. Rc6 {[%clk
0:01:34.2]} 22... Qd7 {[%clk 0:01:32.4]} 23. Ne5 {[%clk 0:01:27.9]} 23... Qe7
{[%clk 0:01:28.6]} 24. Nc2 {[%clk 0:01:01.7]} 24... f4 {[%clk 0:01:25.1]} 25. f3
{[%clk 0:00:55.7]} 25... Ng3 {[%clk 0:01:21.4]} 26. Bd2 {[%clk 0:00:36.4]} 26...
Ne2+ {[%clk 0:01:20.5]} 27. Kf1 {[%clk 0:00:37.6]} 27... Nxc1 {[%clk 0:01:21.9]}
28. Bxc1 {[%clk 0:00:39.5]} 28... Rfc8 {[%clk 0:01:19.7]} 29. Rxc8+ {[%clk
0:00:38.4]} 29... Rxc8 {[%clk 0:01:19.6]} 30. Bd2 {[%clk 0:00:39.9]} 30... Bxe5
{[%clk 0:01:14.1]} 31. dxe5 {[%clk 0:00:40.3]} 31... Qc5 {[%clk 0:01:15.3]} 32.
Ne1 {[%clk 0:00:38.3]} 32... Ne3+ {[%clk 0:01:11.2]} 33. Bxe3 {[%clk 0:00:38.4]}
33... Qxe3 {[%clk 0:01:12]} 34. Qxe3 {[%clk 0:00:39.3]} 34... fxe3 {[%clk
0:01:12.4]} 35. Ke2 {[%clk 0:00:40.5]} 35... Rc1 {[%clk 0:01:12]} 36. Nd3 {[%clk
0:00:41.7]} 36... Rc2+ {[%clk 0:01:12.5]} 37. Kxe3 {[%clk 0:00:40.7]} 37... Rxg2
{[%clk 0:01:13.8]} 38. Kd4 {[%clk 0:00:41.5]} 38... Rh2 {[%clk 0:01:10.5]} 39.
f4 {[%clk 0:00:37.3]} 39... Rxh3 {[%clk 0:01:11.7]} 40. Nc5 {[%clk 0:00:38.4]}
40... h5 {[%clk 0:01:09.6]} 41. Nxa6 {[%clk 0:00:39.4]} 41... Rg3 {[%clk
0:01:08.7]} 42. Nb4 {[%clk 0:00:37.5]} 42... h4 {[%clk 0:01:10.1]} 43. Nd3
{[%clk 0:00:38.8]} 43... Rxd3+ {[%clk 0:01:10.1]} 0-1

[Event "*** Titled Tuesday Blitz"]
[Site "Chess.com"]
[Date "2019.04.02"]
[Round "4"]
[White "Sanyura"]
[Black "ZeroRealtorFade"]
[Result "1-0"]
[WhiteElo "2434"]
[BlackElo "2261"]
[TimeControl "180+2"]
[EndTime "14:48:50 PDT"]
[Termination "Sanyura won by resignation"]

1. Nf3 {[%clk 0:03:01.9]} 1... Nf6 {[%clk 0:02:59.9]} 2. g3 {[%clk 0:03:02.9]}
2... g6 {[%clk 0:03:00.7]} 3. Bg2 {[%clk 0:03:04.4]} 3... Bg7 {[%clk 0:03:02.2]}
4. O-O {[%clk 0:03:06.1]} 4... O-O {[%clk 0:03:03.7]} 5. d3 {[%clk 0:03:08]}
5... d6 {[%clk 0:03:03.8]} 6. Nbd2 {[%clk 0:03:09.9]} 6... c6 {[%clk 0:03:02.9]}
7. e4 {[%clk 0:03:11.8]} 7... Qc7 {[%clk 0:03:03.6]} 8. Qe2 {[%clk 0:03:09.5]}
8... Nbd7 {[%clk 0:03:04.1]} 9. Re1 {[%clk 0:03:10.1]} 9... e5 {[%clk
0:03:03.2]} 10. h4 {[%clk 0:03:11.7]} 10... a5 {[%clk 0:02:59.7]} 11. a4 {[%clk
0:03:12.8]} 11... b6 {[%clk 0:03:00.1]} 12. b3 {[%clk 0:03:13.4]} 12... Ba6
{[%clk 0:03:00.1]} 13. Nf1 {[%clk 0:03:13.8]} 13... Rfe8 {[%clk 0:02:57]} 14.
N1h2 {[%clk 0:03:14]} 14... d5 {[%clk 0:02:52.1]} 15. Ng5 {[%clk 0:03:13.5]}
15... dxe4 {[%clk 0:02:48]} 16. Nxe4 {[%clk 0:03:14]} 16... Nxe4 {[%clk
0:02:48.5]} 17. Qxe4 {[%clk 0:03:15.4]} 17... f5 {[%clk 0:02:42.2]} 18. Qxc6
{[%clk 0:03:11.4]} 18... Qxc6 {[%clk 0:02:41.7]} 19. Bxc6 {[%clk 0:03:13.3]}
19... Rad8 {[%clk 0:02:40.6]} 20. Ba3 {[%clk 0:03:08.9]} 20... e4 {[%clk
0:02:32.3]} 21. Rad1 {[%clk 0:03:08.9]} 21... Bc3 {[%clk 0:02:20.1]} 22. Bxd7
{[%clk 0:01:53.6]} 22... Rxd7 {[%clk 0:02:05.8]} 23. dxe4 {[%clk 0:01:54.6]}
23... Rc7 {[%clk 0:01:05.6]} 24. Re3 {[%clk 0:01:48.5]} 24... fxe4 {[%clk
0:00:58.8]} 25. Nf3 {[%clk 0:00:57.6]} 25... Rcc8 {[%clk 0:00:29]} 26. Ng5
{[%clk 0:00:53]} 26... h6 {[%clk 0:00:16.2]} 27. Nxe4 {[%clk 0:00:50.9]} 27...
Kg7 {[%clk 0:00:10.4]} 28. Rd7+ {[%clk 0:00:45.7]} 28... Kh8 {[%clk 0:00:06.7]}
29. Nxc3 {[%clk 0:00:42.7]} 29... Rxe3 {[%clk 0:00:07.4]} 30. fxe3 {[%clk
0:00:44.4]} 30... Rxc3 {[%clk 0:00:08.5]} 31. Bb2 {[%clk 0:00:45.6]} 1-0

[Event "*** Titled Tuesday Blitz"]
[Site "Chess.com"]
[Date "2019.04.02"]
[Round "4"]
[White "Phurba13"]
[Black "PowerThinking2650"]
[Result "0-1"]
[WhiteElo "2241"]
[BlackElo "2387"]
[TimeControl "180+2"]
[EndTime "14:48:51 PDT"]
[Termination "PowerThinking2650 won by resignation"]

1. e4 {[%clk 0:03:01.9]} 1... e5 {[%clk 0:02:59.6]} 2. Nf3 {[%clk 0:03:02.7]}
2... Nc6 {[%clk 0:03:00.5]} 3. Bc4 {[%clk 0:03:04.1]} 3... Nf6 {[%clk
0:03:00.4]} 4. d3 {[%clk 0:03:05.1]} 4... h6 {[%clk 0:03:00.9]} 5. c3 {[%clk
0:03:06.6]} 5... d6 {[%clk 0:03:01.2]} 6. Bb3 {[%clk 0:03:08]} 6... g6 {[%clk
0:03:01.8]} 7. Nbd2 {[%clk 0:03:09.1]} 7... Bg7 {[%clk 0:03:02.3]} 8. Nf1 {[%clk
0:03:09.5]} 8... O-O {[%clk 0:02:47.1]} 9. Ng3 {[%clk 0:03:08.4]} 9... Kh7
{[%clk 0:02:45.8]} 10. Qe2 {[%clk 0:02:45.5]} 10... d5 {[%clk 0:02:40.7]} 11. h3
{[%clk 0:02:39]} 11... d4 {[%clk 0:02:40.8]} 12. O-O {[%clk 0:02:30.5]} 12... a5
{[%clk 0:02:32.6]} 13. a4 {[%clk 0:02:30.2]} 13... Nd7 {[%clk 0:02:21.8]} 14.
Bd2 {[%clk 0:01:52.4]} 14... Nc5 {[%clk 0:02:20.4]} 15. Bc4 {[%clk 0:01:46.5]}
15... Be6 {[%clk 0:02:17.2]} 16. Bxe6 {[%clk 0:01:06.7]} 16... fxe6 {[%clk
0:02:09.5]} 17. Ne1 {[%clk 0:00:55.7]} 17... Qd6 {[%clk 0:01:50]} 18. b4 {[%clk
0:00:14]} 18... Nb3 {[%clk 0:01:35.5]} 19. Rb1 {[%clk 0:00:11.8]} 19... Nxd2
{[%clk 0:01:36.1]} 20. Qxd2 {[%clk 0:00:13.5]} 20... dxc3 {[%clk 0:01:37.1]} 21.
Qxc3 {[%clk 0:00:15.4]} 21... axb4 {[%clk 0:01:34.5]} 22. Qc4 {[%clk 0:00:16]}
22... Rxa4 {[%clk 0:01:31.8]} 23. Nc2 {[%clk 0:00:17.4]} 23... Rd8 {[%clk
0:01:13.9]} 24. Rfd1 {[%clk 0:00:17.8]} 24... Rf8 {[%clk 0:00:44.3]} 25. Nf1
{[%clk 0:00:17.9]} 25... Nd4 {[%clk 0:00:39.5]} 26. Rd2 {[%clk 0:00:13.8]} 26...
b5 {[%clk 0:00:32.5]} 0-1

[Event "*** Titled Tuesday Blitz"]
[Site "Chess.com"]
[Date "2019.04.02"]
[Round "4"]
[White "Bigfish1995"]
[Black "dreamist"]
[Result "0-1"]
[WhiteElo "2900"]
[BlackElo "2710"]
[TimeControl "180+2"]
[EndTime "14:48:52 PDT"]
[Termination "dreamist won on time"]

1. e4 {[%clk 0:03:01.9]} 1... c5 {[%clk 0:03:00.9]} 2. Nf3 {[%clk 0:03:02.4]}
2... d6 {[%clk 0:03:02.4]} 3. d4 {[%clk 0:03:02.9]} 3... Nf6 {[%clk 0:03:03.6]}
4. dxc5 {[%clk 0:03:02.3]} 4... Qa5+ {[%clk 0:03:04.2]} 5. Bd2 {[%clk
0:02:52.2]} 5... Qxc5 {[%clk 0:03:04.9]} 6. Nc3 {[%clk 0:02:53.1]} 6... e6
{[%clk 0:02:58.5]} 7. Bd3 {[%clk 0:02:31.3]} 7... a6 {[%clk 0:02:57.7]} 8. Qe2
{[%clk 0:02:29.4]} 8... Nbd7 {[%clk 0:02:51.3]} 9. Be3 {[%clk 0:02:07.9]} 9...
Qc7 {[%clk 0:02:51.6]} 10. a4 {[%clk 0:02:06.2]} 10... b6 {[%clk 0:02:51.4]} 11.
O-O {[%clk 0:02:05.8]} 11... Be7 {[%clk 0:02:51.1]} 12. Nd2 {[%clk 0:02:02.9]}
12... Bb7 {[%clk 0:02:41.2]} 13. f4 {[%clk 0:02:03.5]} 13... O-O {[%clk
0:02:34.1]} 14. g4 {[%clk 0:02:00.2]} 14... Nc5 {[%clk 0:02:30]} 15. g5 {[%clk
0:02:00.2]} 15... Nfd7 {[%clk 0:02:31.2]} 16. Bc4 {[%clk 0:01:53.1]} 16... Nxe4
{[%clk 0:02:11.5]} 17. Ndxe4 {[%clk 0:01:52.2]} 17... d5 {[%clk 0:02:11.7]} 18.
Bd3 {[%clk 0:01:40.6]} 18... dxe4 {[%clk 0:02:12.4]} 19. Bxe4 {[%clk 0:01:23.2]}
19... Bxe4 {[%clk 0:02:09.7]} 20. Nxe4 {[%clk 0:01:23.3]} 20... Nc5 {[%clk
0:02:10.8]} 21. Nc3 {[%clk 0:01:23.1]} 21... Rad8 {[%clk 0:02:05.1]} 22. Qc4
{[%clk 0:01:16.7]} 22... Rd7 {[%clk 0:01:52.2]} 23. Rae1 {[%clk 0:01:09.1]}
23... Qb7 {[%clk 0:01:40.9]} 24. f5 {[%clk 0:01:08.7]} 24... exf5 {[%clk
0:01:35.7]} 25. Rxf5 {[%clk 0:01:07.2]} 25... Ne6 {[%clk 0:01:37]} 26. Nd5
{[%clk 0:01:00.3]} 26... Rfd8 {[%clk 0:01:31.1]} 27. Rd1 {[%clk 0:00:18.4]}
27... Bc5 {[%clk 0:01:29.9]} 28. Bxc5 {[%clk 0:00:18.6]} 28... bxc5 {[%clk
0:01:28.8]} 29. Re5 {[%clk 0:00:16.3]} 29... Nd4 {[%clk 0:01:25.7]} 30. Rxd4
{[%clk 0:00:12.7]} 30... cxd4 {[%clk 0:01:26.3]} 31. Qe2 {[%clk 0:00:14.2]}
31... Qb8 {[%clk 0:01:15]} 32. Ne7+ {[%clk 0:00:08.9]} 32... Kf8 {[%clk
0:01:10.1]} 33. Nc6 {[%clk 0:00:10]} 33... Qb6 {[%clk 0:01:11.1]} 34. Nxd8
{[%clk 0:00:05.8]} 34... d3+ {[%clk 0:01:11.7]} 35. Qf2 {[%clk 0:00:06.8]} 35...
Qxf2+ {[%clk 0:01:09.2]} 36. Kxf2 {[%clk 0:00:08.7]} 36... d2 {[%clk 0:01:10]}
0-1